Cogmind - Beta 15 @@@ ROGUE MODE // 2025.06.27 @ 01:44:33 Player: ChemSlug Result: Destroyed by Y-45 Defender with Beam Rifle Performance ------------- Evolutions (1) 500 Regions Visited (3) 600 Robots Destroyed (20) 100 Value Destroyed (351) 351 Prototype IDs (0) 0 Alien Tech Used (0) 0 Bonus (0) 0 TOTAL SCORE: 1551 Bonus ------- None Cogmind --------- Core Integrity 0/400 Matter 300/300 Energy 100/100 System Corruption 0% Temperature Cool (9) Movement Core (1350) Ox26 Location -9/Materials Parts ------- > --- POWER (1) -------- (None) > --- PROPULSION (4) --- (None) > --- UTILITY (2) ------ Huge Storage Unit > --- WEAPON (2) ------- (None) > --- INVENTORY (25) --- Small Storage Unit Large Storage Unit Targeting Computer ECM Suite ECM Suite ECM Suite ECM Suite ECM Suite Grenade Launcher Grenade Launcher Peak State ------------ > --- POWER ------------ Ion Engine > --- PROPULSION ------- Light Treads Light Treads > --- UTILITY ---------- Small Storage Unit Small Storage Unit > --- WEAPON ----------- Assault Rifle Light Assault Rifle > --- INVENTORY -------- Light Ion Engine Light Ion Engine Light Assault Rifle [Rating: 7] Favorites ----------- Power Ion Engine Engine Ion Engine Propulsion Light Treads Treads Light Treads Flight Unit Flight Unit Utility Huge Storage Unit Storage Huge Storage Unit Protection Propulsion Shielding Weapon Beam Cannon Energy Cannon Beam Cannon Ballistic Gun Assault Rifle Build | -11 -10 -10 -9 ------- Run | Yrd Mat Min Mat Slots Evolved 2 | . . . 2 Power . | . . . . Propulsion 2 | . . . 2 Utility . | . . . . Weapon . | . . . . Parts Attached 19 | 7 8 2 2 Power 4 | 2 1 . 1 Engine 4 | 2 1 . 1 Core . | . . . . Reactor . | . . . . Propulsion 4 | 2 . 1 1 Treads 2 | 2 . . . Leg . | . . . . Wheel . | . . . . Hover . | . . . . Flight 2 | . . 1 1 Utility 5 | 1 3 1 . Device . | . . . . Storage 4 | 1 3 . . Processor . | . . . . Hackware . | . . . . Protection 1 | . . 1 . Artifact . | . . . . Weapon 6 | 2 4 . . Energy Gun . | . . . . Energy Cannon 3 | . 3 . . Ballistic Gun 3 | 2 1 . . Ballistic Cannon . | . . . . Launcher . | . . . . Special Weapon . | . . . . Impact Weapon . | . . . . Slashing Weapon . | . . . . Piercing Weapon . | . . . . Special Melee Weapon . | . . . . Unidentified Prototypes . | . . . . Parts Lost 10 | . 1 3 6 Power 3 | . 1 . 2 Propulsion 4 | . . 2 2 Utility 1 | . . . 1 Weapon 2 | . . 1 1 Highest Loss Streak 5 | . 1 2 5 To Critical Strikes . | . . . . Average Backups 8 | 1 7 9 10 Power . | . . . . Propulsion . | . . . . Utility 6 | . 4 7 8 Weapon 1 | . 2 1 2 Tool/Special . | . . . . Unused Backups 13 | . 5 . 8 Power 1 | . 1 . . Propulsion . | . . . . Utility 7 | . 1 . 6 Weapon 5 | . 3 . 2 Tool/Special . | . . . . Average Slot Usage (%) 80 | . 94 83 53 Engine 11 | . 10 14 8 Treads 17 | . 28 17 . Flight 3 | . . 1 13 Storage 20 | . 27 20 11 Protection 5 | . . 7 9 Energy Cannon 19 | . 23 20 10 Ballistic Gun 1 | . 3 . . Peak Build Rating 7 | 6 7 7 7 Average Rating 6 | 5 6 6 5 On Entrance 4 | . 6 7 6 Naked Turns . | . . . . Heaviest Build 111 | 13 111 111 89 Greatest Support 40 | 40 40 40 8 Greatest Overweight (x) 29 | . 2 29 26 Average Overweight (x) 2 | . . 4 16 Largest Inventory Capacity 25 | 8 25 25 25 Average Capacity 21 | 7 18 25 25 Most Carried 11 | 2 9 11 11 Average Carried 8 | 1 7 9 10 Final Capacity 25 | 8 25 25 25 Final Carried 10 | 2 8 10 10 Class Distribution -------------------- 100% | Mutant Dominant Class ---------------- Mutant | -10/Materials Mutant | -10/Mines Mutant | -9/Materials Resources | -11 -10 -10 -9 ----------- Run | Yrd Mat Min Mat Matter Collected 405 | 250 100 45 10 Remotely . | . . . . Salvage Created 585 | . 366 179 40 Parts 32 | . 22 5 5 Haulers Intercepted . | . . . . Recyclers Shooed . | . . . . Parts Field Recycled . | . . . . Retrieved Matter . | . . . . Parts Self-Destructed . | . . . . Prevented . | . . . . Kills | -11 -10 -10 -9 ------- Run | Yrd Mat Min Mat Combat Hostiles Destroyed 17 | . 11 3 3 Guns 2 | . 2 . . Cannons 15 | . 9 3 3 Classes Destroyed 4 | . 4 . . Recycler 2 | . 1 1 . Watcher 1 | . 1 . . Swarmer 12 | . 8 1 3 Grunt 5 | . 3 2 . Best Kill Streak 3 | . 3 3 3 Combat Bots Only 3 | . 3 2 3 Max Kills in Single Turn 1 | . 1 1 1 Gunslinging . | . . . . Exploded . | . . . . Melee . | . . . . Uniques/NPCs Destroyed . | . . . . Combat | -11 -10 -10 -9 -------- Run | Yrd Mat Min Mat Hostile Shots Fired 232 | . 105 40 87 Missed 67 | . 26 14 27 Hits 165 | . 79 26 60 Projectile 165 | . 79 26 60 Critical Strikes 7 | . 3 . 4 Damage Taken 1651 | . 647 267 737 Core 601 | . 120 70 411 Absorbed by Shields . | . . . . Redirected to Shielding 33 | . . 28 5 Core Remaining (%) 62 | 100 . 24 . Volleys Fired 64 | . 32 22 10 Largest 2 | . 2 1 1 Hottest 120 | . 120 60 60 Shots Fired 95 | . 63 22 10 Gun 20 | . 20 . . Cannon 75 | . 43 22 10 Launcher . | . . . . Special . | . . . . Kinetic 20 | . 20 . . Thermal 75 | . 43 22 10 Explosive . | . . . . Electromagnetic . | . . . . Robot Hit Streak 11 | . 4 11 4 Robot Miss Streak 4 | . 4 3 4 Penetration Max . | . . . . Secondary Targets . | . . . . Shots Hit Robots 52 | . 33 14 5 Core Hits 21 | . 13 5 3 Critical Kills . | . . . . Critical Parts Destroyed . | . . . . Critical Strikes . | . . . . Melee Attacks . | . . . . Impact . | . . . . Slashing . | . . . . Piercing . | . . . . Sneak Attacks . | . . . . Combat Hostiles . | . . . . Follow-up Attacks . | . . . . Damage Inflicted 867 | . 531 249 87 Guns 128 | . 128 . . Cannons 739 | . 403 249 87 Explosions . | . . . . Melee . | . . . . Ramming . | . . . . Kinetic 128 | . 128 . . Thermal 739 | . 403 249 87 Explosive . | . . . . Electromagnetic . | . . . . Impact . | . . . . Slashing . | . . . . Piercing . | . . . . Highest Corruption . | . . . . Average Corruption . | . . . . Corruption Purged . | . . . . Corruption Blocked . | . . . . Overload Shots . | . . . . Overflow Damage 15 | . 15 . . Projectiles 15 | . 15 . . Explosions . | . . . . Melee . | . . . . Knockbacks . | . . . . Impact . | . . . . Kinetic . | . . . . Secondary . | . . . . Self-Inflicted Damage . | . . . . Shots . | . . . . Rammed . | . . . . Targets Rammed . | . . . . Kicked . | . . . . Crushed . | . . . . Highest Temperature 325 | . 325 268 54 Average Temperature 97 | . 107 106 23 Received Heat Transfer 318 | . 18 66 234 Effects 1 | . 1 . . Short Circuit 1 | . 1 . . Siege Activations . | . . . . Martial Activations . | . . . . Shielding Activations . | . . . . Robots Disrupted . | . . . . Combat Hostiles . | . . . . Robots Corrupted . | . . . . Combat Hostiles . | . . . . Parts Fried . | . . . . Impact Corruptions . | . . . . Robots Melted . | . . . . Combat Hostiles . | . . . . Parts Melted 4 | . 1 1 2 Heat Transferred 1554 | . 851 518 185 Parts Sabotaged . | . . . . Parts Stolen . | . . . . Parts Stripped . | . . . . Power Chain Reactions . | . . . . Alert | -11 -10 -10 -9 ------- Run | Yrd Mat Min Mat Maximum Alert Level . | . . . . Low Security (%) 100 | 100 100 100 100 Level 1 . | . . . . Level 2 . | . . . . Level 3 . | . . . . Level 4 . | . . . . Level 5 . | . . . . High Security . | . . . . Max Security . | . . . . Peak Influence 76 | . 76 42 60 Initial . | . . . . Average 12 | . 26 3 6 Influence Increases 504 | . 344 75 85 Destroy 0b10 Robot/C 340 | . 220 60 60 Destroy 0b10 Robot/NC 15 | . 10 5 . Destroy Leader 72 | . 52 10 10 Disable Machine 30 | . 30 . . Destroy Structure 2 | . 2 . . Lose Combat Pursuer 45 | . 30 . 15 Influence Decreases 504 | . 344 75 85 Time Decay 484 | . 334 75 75 Lost Part 20 | . 10 . 10 Squads Dispatched 4 | . 4 . . Investigation 2 | . 2 . . Extermination . | . . . . Reinforcement 2 | . 2 . . Assault . | . . . . Garrison . | . . . . Intercept . | . . . . Searches Triggered . | . . . . Construction Impeded . | . . . . Haulers Reinforced . | . . . . Active Scanning Responses . | . . . . Cargo Convoy Interrupts . | . . . . Stealth | -11 -10 -10 -9 --------- Run | Yrd Mat Min Mat Distress Signals 3 | . 2 . 1 Communications Jammed . | . . . . Distress Signals . | . . . . Times Spotted 31 | . 19 5 7 Peak Tracking Total 4 | . 4 3 4 Tactical Retreats 2 | . 1 . 1 Traps | -11 -10 -10 -9 ------- Run | Yrd Mat Min Mat Traps Triggered 2 | . 2 . . Indirectly . | . . . . Trap Hack Attempts . | . . . . Triggered . | . . . . Disarmed . | . . . . Reprogrammed . | . . . . Reused . | . . . . Traps Extracted . | . . . . Installed . | . . . . Triggered . | . . . . Machines | -11 -10 -10 -9 ---------- Run | Yrd Mat Min Mat Machines Disabled 2 | . 2 . . Max in Single Turn 1 | . 1 . . Machines Repaired . | . . . . Machines Dismantled . | . . . . Machines Sabotaged . | . . . . Overloaded Fab Kills . | . . . . Hacking | -11 -10 -10 -9 --------- Run | Yrd Mat Min Mat Machines Accessed 1 | . 1 . . Terminals . | . . . . Fabricators . | . . . . Repair Stations . | . . . . Recycling Units 1 | . 1 . . Scanalyzers . | . . . . Garrison Access . | . . . . Total Hacks 1 | . 1 . . Successful . | . . . . Failed 1 | . 1 . . Catastrophic . | . . . . Database Lockouts . | . . . . Manual . | . . . . Terminals . | . . . . Fabricators . | . . . . Repair Stations . | . . . . Recycling Units 1 | . 1 . . Scanalyzers . | . . . . Garrison Access . | . . . . Terminal Hacks . | . . . . Fabricator Hacks . | . . . . Repair Station Hacks . | . . . . Recycling Unit Hacks . | . . . . Scanalyzer . | . . . . Garrison Access Hacks . | . . . . Unauthorized Hacks . | . . . . Terminals . | . . . . Fabricators . | . . . . Repair Stations . | . . . . Recycling Units . | . . . . Scanalyzers . | . . . . Garrison Access . | . . . . Data Cores Recovered . | . . . . Used . | . . . . Hacking Detections . | . . . . Full Trace Events . | . . . . Feedback Events . | . . . . Feedback Blocked . | . . . . Robot Schematics Acquired . | . . . . Robots Built . | . . . . Authchips . | . . . . Time . | . . . . Total Robot Build Rating . | . . . . Part Schematics Acquired . | . . . . Parts Built . | . . . . Authchips . | . . . . Time . | . . . . Total Part Build Rating . | . . . . Parts Repaired . | . . . . Time . | . . . . Parts Recycled . | . . . . Recycled Matter . | . . . . Retrieved Matter . | . . . . Retrieved Components . | . . . . Parts Scanalyzed . | . . . . Part Schematics Acquired . | . . . . Parts Damaged . | . . . . Bothacking | -11 -10 -10 -9 ------------ Run | Yrd Mat Min Mat Used RIF Installer . | . . . . Robots Hacked . | . . . . Non-combat . | . . . . Combat . | . . . . Robot Hacks Applied . | . . . . Relay Couplers Released . | . . . . Fabnet Peak Effective % . | . . . . Robots Rewired . | . . . . Allies Hacked . | . . . . Hacks Repelled . | . . . . Allies | -11 -10 -10 -9 -------- Run | Yrd Mat Min Mat Total Allies . | . . . . Largest Group . | . . . . Highest-Rated Group . | . . . . Highest-Rated Ally . | . . . . Total Orders . | . . . . Ally Attacks . | . . . . Total Damage . | . . . . Kills . | . . . . Allies Corrupted . | . . . . Allies Melted . | . . . . Intel | -11 -10 -10 -9 ------- Run | Yrd Mat Min Mat Active Infowar (turns) . | . . . . Robot Analysis Total . | . . . . Derelict Logs Recovered 2 | . . 2 . Drone Launches . | . . . . Drone Recoveries . | . . . . Exploration | -11 -10 -10 -9 ------------- Run | Yrd Mat Min Mat Turns Passed 2858 | 112 1057 1000 689 Spaces Moved 736 | 69 397 218 52 Core 24 | 12 . 9 3 Treads 657 | 57 397 203 . Legs . | . . . . Wheels . | . . . . Hover . | . . . . Flight 55 | . . 6 49 Fastest Speed 50 | 50 160 320 837 Average Speed 362 | 140 234 443 1289 Slowest Speed 1800 | 160 320 1800 1800 Overloaded Moves . | . . . . Propulsion Burnouts . | . . . . Robots Hopped . | . . . . Potential Cave-ins . | . . . . Cave-ins Triggered . | . . . . Exploration Rate (%) 35 | 6 63 65 8 Regions Visited 3 Branch Regions 1 Pre-discovered Areas 1 | . . 1 . Known Exits Taken . | . . . . Unknown Exits Taken 3 | 1 1 1 . Scrap Searched 1 | . . 1 . Spaces Dug . | . . . . Terrain Destroyed . | . . . . Melee . | . . . . Projectile . | . . . . AOE . | . . . . Terrain Rammed . | . . . . Walls Destroyed . | . . . . Machines Disabled . | . . . . Actions | -11 -10 -10 -9 --------- Run | Yrd Mat Min Mat Total 863 | 83 470 244 66 Wait . | . . . . Move 733 | 68 396 217 52 Hop . | . . . . Pick Up 32 | 8 19 3 2 Fast Attach 1 | . 1 . . Attach 13 | 6 4 1 2 Detach 2 | . 2 . . Swap 5 | 1 3 1 . Drop 13 | . 13 . . Fire 64 | . 32 22 10 Melee . | . . . . Ram . | . . . . Kick . | . . . . Crush . | . . . . Escape Stasis . | . . . . Rewire . | . . . . Trap . | . . . . Miscellaneous . | . . . . Route ------- -11/Scrapyard -10/Materials (discovered 5 exits: [*Mat x2] / [*Min x2] / [*Sub]) -10/Mines -9/Materials (discovered 2 exits: Min x2) History --------- Turn | Location | Event 7 | -11/Scrapyard | Discovered new exit (range 16) 113 | -11/Scrapyard | Entered Materials 114 | -10/Materials | Met a group of wandering Federalists 317 | -10/Materials | Build established: Mutant 454 | -10/Materials | Discovered new exit (range 15) 510 | -10/Materials | Discovered new exit (range 15) 636 | -10/Materials | Discovered new exit (range 8) 815 | -10/Materials | Discovered new exit (range 5) 1062 | -10/Materials | Discovered new exit (range 7) 1170 | -10/Materials | Entered Mines 1472 | -10/Mines | Learned location of Storage (-7) 1634 | -10/Mines | Learned Materials emergency access door positions 1687 | -10/Mines | Core integrity fell below 50% 1973 | -10/Mines | Discovered new exit (range 5) 2170 | -10/Mines | Entered Materials 2170 | -9/Materials | Evolved 2 slots: Propulsion x2 2171 | -9/Materials | Identified exit to Mines 2837 | -9/Materials | Core integrity fell below 50% 2849 | -9/Materials | Core integrity fell below 20% 2853 | -9/Materials | Lost 5 parts (1p2n1u1w) 2859 | -9/Materials | Destroyed by Y-45 Defender with Beam Rifle Last Messages --------------- (x5)... U-05 Engineer works on Atomic Centrifuge. U-05 Engineer completes Atomic Centrifuge. Atomic Centrifuge comes online. W-16 Scout sends out distress signal. Ion Engine destroyed. Flight Unit melted. Lgt. Ion Engine melted. S-10 Pest destroyed. Acquired Lgt. Ion Engine. Acquired 10 matter. Acquired Flight Unit. R-06 Scavenger collects Lgt. Assault Rifle. Propulsion Shielding destroyed. Beam Cannon destroyed. Flight Unit destroyed. Critical hit (Burn: +37). Lgt. Ion Engine destroyed. Flight Unit destroyed. Critical hit (Burn: +37). Map ----- +----------------------------------------------------+ | | | | | | | | | | | | | | | | | | | | | | | | | | | | | | | | | | | | | ???????????#########??????????????????????? | | ???????????? #?????????????????????? | | ???????????""" "T" #?????????????????????? | | ??????????""""" #??????????###########? | | ??????????""""" ##?????????# ## | | ??????????""""" Y#?????????# # | | ????????# """ #??????????# # | | ????????# @ #??????????# """ """ # | | ??????????####+##+###??????????# """ """ # | | ????????????# #????????????# """ """ # | | ????????????+ #????????????# [ # | | ????????????# #????????????# % # | | ????????????# #???????#########+###### | | ????????????# ######### % [ | | ????????????# % | | ????????????# ############ """ "" | | ????????????# #??????????######## """ "" | | ????????????# #?????????????????# """ "" | | ????????????# #???????????????? | | ???????????? ??????????????! ^^ | | ???????????? ?????????????#! !! | | ??????????? ?????????????#! !! | | ???????????# ?????????????#! | | ???????????## ##?????????????##! | | ????????????# ????????????????#### ###### | | ????????????#+???????????????????# #????? | | ????????????# ???????????????????? #????? | | ????????????? ???????????????????? #????? | | ?????????????????????????????????? #????? | | ?????????????????????????????????? ?????? | | ??????????????????????????????????????????? | | ??????????????????????????????????????????? | +----------------------------------------------------+ Best States ------------- Heat Dissipation 28 Energy Generation 10 Energy Capacity 250 Matter Stores 300 Matter Capacity 300 Sight Range 16 Terrain Scan Density 10 Propulsion Shielding 33 Evasion (%) 50 Recoil Reduction 2 Item Schematics ----------------- None Robot Schematics ------------------ None Fabricated ------------ Nothing Repaired ---------- Nothing Alien Tech Used ----------------- None Achievements -------------- None Challenges ------------ None Game ------ Seed TractorChromaticDissipator Manual? 0 Play Time 00:23:24 Cumulative 4.2 hours Start 2025.06.27 @ 00:26:59 End 2025.06.27 @ 01:44:33 Sessions 1 Manual Loads 0 Difficulty Rogue Special Mode None Game No. 8 Rogue 8 Adventurer 0 Explorer 0 Win Type - Total 0 Types 0/0/0/0/0/0/0/0/0/0 Lore% 0 Gallery% 10 Achievement% 7 Wizard Run 0 Options --------- Layout 1 ASCII 0 Keyboard 0 Movement Mouse Keybinds 0 Fullscreen 1 Font 20/SmallcapsGlow Map View 50x35 Zoom Use 0% Tactical HUD 0 Map Filters NONE Filters NONE Steam 1 RUN: 4b422c6d-e8ff-48b3-acfa-09ffe91a4ba3